fUSD/lending_fUSD_20250602
["ID","MTS","AMOUNT","RATE_DAILY","PERIOD"]
[363809054,1748881717030,195.87745399,0.00039,120]
[363809055,1748881717135,185.18878927,0.0004,120]
[363809058,1748881722478,492.82882465,0.000389,120]
[363809059,1748881722508,1672.53740809,0.000369,120]
[363809060,1748881722538,526.00709799,0.00041,120]
[363809069,1748881723877,679.69998644,0.0004,120]
[363809070,1748881727482,1934.24,0.00041095,120]
[363809071,1748881738926,-489.0,0.0003974,120]
[363809072,1748881738954,-1000.0,0.0003974,120]
[363809073,1748881738984,-1000.0,0.0003974,120]
[363809074,1748881739008,-578.85929,0.0003974,120]
[363809075,1748881739033,-355.25677137,0.0003974,120]
[363809076,1748881739057,-2866.93301798,0.0003974,120]
[363809077,1748881739081,-189.73396177,0.0003974,120]
[363809078,1748881739109,-953.81376409,0.0003974,120]
[363809079,1748881739133,-1574.77413526,0.0003974,120]
[363809080,1748881739158,-193.32158135,0.0003974,120]
[363809081,1748881739182,-2414.40535512,0.0003974,120]
[363809082,1748881739207,-2360.0,0.0003974,120]
[363809083,1748881739232,-549.49157725,0.0003974,120]
[363809084,1748881739257,-437.57012132,0.0003974,120]
[363809085,1748881739283,-1358.02026131,0.0003974,120]
[363809086,1748881739308,-231.23940436,0.0003974,120]
[363809087,1748881739333,-1704.44473703,0.0003974,120]
[363809088,1748881739359,-1513.15479096,0.0003974,120]
[363809089,1748881739385,-229.6361382,0.0003974,120]
[363809090,1748881739410,-198.69921722,0.0003974,120]
[363809091,1748881739434,-2918.4030571,0.0003974,120]
[363809092,1748881739460,-929.45230127,0.0003974,120]
[363809093,1748881739486,-458.5173006,0.0003974,120]
[363809094,1748881739510,-182.3422766,0.0003974,120]
[363809095,1748881739536,-922.58222958,0.0003974,120]
[363809096,1748881739563,-1473.4232206,0.0003974,120]
[363809097,1748881739592,-205.74765991,0.0003974,120]
[363809098,1748881739618,-786.72141518,0.0003974,120]
[363809099,1748881739643,-472.8475647,0.0003974,120]
[363809100,1748881739668,-170.94951585,0.0003974,120]
[363809101,1748881739692,-227.92781482,0.0003974,120]
[363809102,1748881739717,-2132.76100324,0.0003974,120]
[363809103,1748881739744,-3235.09511173,0.0003974,120]
[363809104,1748881739768,-241.20428471,0.0003974,120]
[363809105,1748881739794,-703.9866547,0.0003974,120]
[363809106,1748881739821,-805.60303042,0.0003974,120]
[363809107,1748881739848,-2292.46471502,0.0003974,120]
[363809108,1748881739872,-257.15332726,0.0003974,120]
[363809109,1748881739897,-308.16636336,0.0003974,120]
[363809110,1748881739921,-611.13160757,0.0003974,120]
[363809111,1748881739945,-1288.87224215,0.0003974,120]
[363809112,1748881739972,-1353.56372792,0.0003974,120]
[363809113,1748881739997,-543.50029874,0.0003974,120]
[363809114,1748881740022,-389.06481571,0.0003974,120]
[363809115,1748881740048,-1336.98890221,0.0003974,120]
[363809116,1748881740074,-195.69600825,0.0003974,120]
[363809117,1748881740100,-568.0809196,0.0003974,120]
[363809118,1748881740126,-1344.1691351,0.0003974,120]
[363809119,1748881740152,-1449.83733865,0.0003974,120]
[363809120,1748881740178,-1194.85664526,0.0003974,120]
[363809121,1748881740204,-998.09968435,0.0003974,120]
[363809122,1748881740230,-203.90417987,0.0003974,120]
[363809123,1748881740256,-1313.98518264,0.0003974,120]
[363809124,1748881740281,-1236.82635359,0.0003974,120]
[363809125,1748881740306,-3130.78577794,0.0003974,120]
[363809126,1748881740332,-420.34378279,0.0003974,120]
[363809127,1748881740359,-3253.13652498,0.0003974,120]
[363809128,1748881740385,-644.38326602,0.0003974,120]
[363809129,1748881740410,-200.0,0.0003974,120]
[363809130,1748881740434,-614.07517196,0.0003974,120]
[363809131,1748881740459,-450.08336951,0.0003974,120]
[363809132,1748881740485,-2617.6266899,0.0003974,120]
[363809133,1748881740510,-3275.79049292,0.0003974,120]
[363809134,1748881740535,-264.98635164,0.0003974,120]
[363809135,1748881740560,-177.2723105,0.0003974,120]
[363809136,1748881740587,-2180.64268729,0.0003974,120]
[363809137,1748881740613,-1098.00255347,0.0003974,120]
[363809138,1748881740640,-179.0,0.0003974,120]
[363809139,1748881740667,-3274.11721017,0.0003974,120]
[363809140,1748881740692,-500.0,0.0003974,120]
[363809141,1748881740717,-500.0,0.0003974,120]
[363809142,1748881740745,-500.0,0.0003974,120]
[363809143,1748881740770,-500.0,0.0003974,120]
[363809144,1748881740796,-500.0,0.0003974,120]
[363809145,1748881740823,-500.0,0.0003974,120]
[363809146,1748881740849,-500.0,0.0003974,120]
[363809147,1748881740874,-500.0,0.0003974,120]
[363809148,1748881740898,-500.0,0.0003974,120]
[363809149,1748881741202,-500.0,0.0003974,120]
[363809150,1748881741233,-500.0,0.0003974,120]
[363809151,1748881741261,-172.19996439,0.0003974,120]
[363809152,1748881741288,-1733.23998328,0.0003974,120]
[363809153,1748881744707,160.0,0.00029,120]
[363809154,1748881746130,160.0,0.000351,120]
[363809155,1748881751819,6283.62,0.00018659,2]
[363809156,1748881767682,2867.13,0.00041095,120]
[363809157,1748881770466,150.0,0.00039636,120]
[363809158,1748881780399,9858.0,0.000388,120]
[363809159,1748881781318,202.0,0.00018452,2]
[363809161,1748881805306,1000.0,0.00018541,2]
[363809162,1748881811084,2235.0,0.00041096,120]
[363809163,1748881825591,866.55,0.00018522,2]
[363809164,1748881827980,24444.0,0.00041,120]
[363809165,1748881830712,150.0,0.00039779,120]
[363809171,1748881831461,-300.0,0.00019019,2]
[363809172,1748881831472,-1200.0,0.00019019,2]
[363809173,1748881831481,-102.52879947,0.0001902,2]
[363809174,1748881831516,-251.62,0.0001902,2]
[363809175,1748881831527,-45.85120053,0.0001902,2]
[363809176,1748881831538,-617.37879947,0.0001902,2]
[363809177,1748881831675,-1538.83228188,0.0001902,2]
[363809178,1748881831727,-2831.278002,0.0001902,2]
[363809179,1748881831786,-15271.24498944,0.0001902,2]
[363809180,1748881831796,-250.0,0.00019022,2]
[363809181,1748881831807,-400.0,0.00019022,2]
[363809182,1748881831816,-400.0,0.00019048,2]
[363809183,1748881831825,-708.85,0.00019072,2]
[363809184,1748881831835,-300.0,0.00019077,2]
[363809186,1748881831844,-2077.259,0.00019078,2]
[363809187,1748881831854,-5320.4025,0.00019078,2]
[363809188,1748881831864,-227.4061,0.00019078,2]
[363809189,1748881831873,-271.4441,0.00019078,2]
[363809190,1748881831882,-492.3392,0.00019078,2]
[363809191,1748881831892,-232.66,0.00019092,2]
[363809192,1748881831901,-156.64719075,0.00019166,2]
[363809193,1748881831911,-420.0,0.00019178,2]
[363809194,1748881831920,-542.68,0.00019178,2]
[363809195,1748881831930,-382.07,0.00019178,2]
[363809196,1748881831940,-425.59121582,0.00019178,2]
[363809197,1748881831951,-420.0,0.00019178,2]
[363809198,1748881831960,-420.0,0.00019178,2]
[363809199,1748881831970,-510.3002963,0.00019178,2]
[363809200,1748881831980,-420.0,0.00019178,2]
[363809201,1748881831989,-420.0,0.00019178,2]
[363809203,1748881831998,-212.76,0.00019178,2]
[363809205,1748881832010,-162.91,0.00019178,2]
[363809207,1748881832020,-420.0,0.00019178,2]
[363809209,1748881832029,-420.0,0.00019178,2]
[363809211,1748881832038,-228.95,0.00019178,2]
[363809213,1748881832047,-420.0,0.00019178,2]
[363809215,1748881832056,-420.0,0.00019178,2]
[363809217,1748881832065,-420.0,0.00019178,2]
[363809219,1748881832074,-420.0,0.00019178,2]
[363809222,1748881832084,-420.0,0.00019178,2]
[363809225,1748881832093,-420.0,0.00019178,2]
[363809227,1748881832103,-420.0,0.00019178,2]
[363809229,1748881832112,-256.37,0.00019178,2]
[363809231,1748881832121,-420.0,0.00019178,2]
[363809233,1748881832130,-257.49,0.00019178,2]
[363809235,1748881832140,-420.0,0.00019178,2]
[363809237,1748881832149,-420.0,0.00019178,2]
[363809239,1748881832158,-420.0,0.00019178,2]
[363809241,1748881832168,-420.0,0.00019178,2]
[363809243,1748881832178,-420.0,0.00019178,2]
[363809245,1748881832187,-420.0,0.00019178,2]
[363809247,1748881832197,-482.49,0.00019178,2]
[363809249,1748881832207,-420.0,0.00019178,2]
[363809251,1748881832217,-420.0,0.00019178,2]
[363809252,1748881832226,-180.02,0.00019178,2]
[363809255,1748881832236,-489.97,0.00019178,2]
[363809257,1748881832246,-420.0,0.00019178,2]
[363809259,1748881832255,-368.46,0.00019178,2]
[363809260,1748881832265,-420.0,0.00019178,2]
[363809262,1748881832274,-420.0,0.00019178,2]
[363809264,1748881832284,-420.0,0.00019178,2]
[363809266,1748881832294,-420.0,0.00019178,2]
[363809268,1748881832304,-420.0,0.00019178,2]
[363809270,1748881832313,-420.0,0.00019178,2]
[363809272,1748881832323,-420.0,0.00019178,2]
[363809274,1748881832333,-420.0,0.00019178,2]
[363809276,1748881832342,-420.0,0.00019178,2]
[363809278,1748881832352,-420.0,0.00019178,2]
[363809280,1748881832362,-420.0,0.00019178,2]
[363809282,1748881832371,-261.65,0.00019178,2]
[363809284,1748881832381,-420.0,0.00019178,2]
[363809286,1748881832391,-420.0,0.00019178,2]
[363809288,1748881832401,-309.1084365,0.00019178,2]
[363809290,1748881832410,-420.0,0.00019178,2]
[363809292,1748881832419,-420.0,0.00019178,2]
[363809294,1748881832429,-420.0,0.00019178,2]
[363809296,1748881832438,-420.0,0.00019178,2]
[363809298,1748881832448,-420.0,0.00019178,2]
[363809300,1748881832458,-420.0,0.00019178,2]
[363809302,1748881832467,-420.0,0.00019178,2]
[363809304,1748881832477,-420.0,0.00019178,2]
[363809306,1748881832487,-420.0,0.00019178,2]
[363809308,1748881832496,-441.05,0.00019178,2]
[363809310,1748881832506,-420.0,0.00019178,2]
[363809312,1748881832516,-420.0,0.00019178,2]
[363809314,1748881832527,-566.69,0.00019178,2]
[363809316,1748881832537,-420.0,0.00019178,2]
[363809318,1748881832546,-239.83,0.00019178,2]
[363809320,1748881832556,-420.0,0.00019178,2]
[363809322,1748881832565,-582.13,0.00019178,2]
[363809324,1748881832575,-420.0,0.00019178,2]
[363809326,1748881832584,-420.0,0.00019178,2]
[363809328,1748881832593,-420.0,0.00019178,2]
[363809330,1748881832602,-420.0,0.00019178,2]
[363809332,1748881832611,-420.0,0.00019178,2]
[363809334,1748881832621,-420.0,0.00019178,2]
[363809336,1748881832631,-1244.7,0.00019178,2]
[363809338,1748881832640,-420.0,0.00019178,2]
[363809340,1748881832650,-420.0,0.00019178,2]
[363809342,1748881832659,-420.0,0.00019178,2]
[363809344,1748881832668,-420.0,0.00019178,2]
[363809345,1748881832677,-420.0,0.00019178,2]
[363809347,1748881832687,-420.0,0.00019178,2]
[363809349,1748881832695,-420.0,0.00019178,2]
[363809351,1748881832705,-420.0,0.00019178,2]
[363809353,1748881832714,-179.82917729,0.00019178,2]
[363809355,1748881832723,-494.32,0.00019178,2]
[363809357,1748881832732,-420.0,0.00019178,2]
[363809359,1748881832741,-420.0,0.00019178,2]
[363809361,1748881832750,-605.35,0.00019178,2]
[363809363,1748881832760,-420.0,0.00019178,2]
[363809365,1748881832774,-420.0,0.00019178,2]
[363809367,1748881832783,-420.0,0.00019178,2]
[363809369,1748881832793,-420.0,0.00019178,2]
[363809371,1748881832802,-420.0,0.00019178,2]
[363809374,1748881832813,-845.85,0.00019178,2]
[363809375,1748881832822,-410.86,0.00019178,2]
[363809377,1748881832832,-420.0,0.00019178,2]
[363809379,1748881832842,-420.0,0.00019178,2]
[363809382,1748881832853,-420.0,0.00019178,2]
[363809383,1748881832863,-420.0,0.00019178,2]
[363809385,1748881832872,-157.048068,0.00019178,2]
[363809387,1748881832882,-157.048068,0.00019178,2]
[363809389,1748881832891,-157.048068,0.00019178,2]
[363809391,1748881832901,-420.0,0.00019178,2]
[363809393,1748881832910,-420.0,0.00019178,2]
[363809395,1748881832920,-420.0,0.00019178,2]
[363809397,1748881832930,-420.0,0.00019178,2]
[363809399,1748881832939,-420.0,0.00019178,2]
[363809401,1748881832948,-2608.49,0.00019178,2]
[363809403,1748881832958,-420.0,0.00019178,2]
[363809405,1748881832967,-420.0,0.00019178,2]
[363809407,1748881832976,-420.0,0.00019178,2]
[363809409,1748881832986,-442.92,0.00019178,2]
[363809411,1748881832995,-226.55,0.00019178,2]
[363809413,1748881833004,-420.0,0.00019178,2]
[363809415,1748881833014,-420.0,0.00019178,2]
[363809417,1748881833024,-420.0,0.00019178,2]
[363809419,1748881833034,-420.0,0.00019178,2]
[363809421,1748881833043,-420.0,0.00019178,2]
[363809423,1748881833053,-420.0,0.00019178,2]
[363809425,1748881833063,-420.0,0.00019178,2]
[363809427,1748881833073,-420.0,0.00019178,2]
[363809429,1748881833083,-420.0,0.00019178,2]
[363809431,1748881833092,-521.83,0.00019178,2]
[363809433,1748881833103,-420.0,0.00019178,2]
[363809435,1748881833113,-420.0,0.00019178,2]
[363809437,1748881833123,-420.0,0.00019178,2]
[363809439,1748881833134,-420.0,0.00019178,2]
[363809442,1748881833145,-420.0,0.00019178,2]
[363809444,1748881833155,-420.0,0.00019178,2]
[363809445,1748881833165,-420.0,0.00019178,2]
[363809447,1748881833175,-464.15,0.00019178,2]
[363809449,1748881833185,-420.0,0.00019178,2]
[363809452,1748881833195,-420.0,0.00019178,2]
[363809453,1748881833206,-538.47,0.00019178,2]
[363809455,1748881833216,-420.0,0.00019178,2]
[363809457,1748881833227,-420.0,0.00019178,2]
[363809459,1748881833236,-420.0,0.00019178,2]
[363809461,1748881833246,-420.0,0.00019178,2]
[363809463,1748881833256,-420.0,0.00019178,2]
[363809466,1748881833267,-420.0,0.00019178,2]
[363809468,1748881833277,-420.0,0.00019178,2]
[363809470,1748881833287,-538.52,0.00019178,2]
[363809471,1748881833297,-420.0,0.00019178,2]
[363809473,1748881833307,-420.0,0.00019178,2]
[363809475,1748881833317,-420.0,0.00019178,2]
[363809478,1748881833327,-333.75,0.00019178,2]
[363809480,1748881833338,-420.0,0.00019178,2]
[363809481,1748881833347,-420.0,0.00019178,2]
[363809483,1748881833357,-420.0,0.00019178,2]
[363809485,1748881833366,-532.54,0.00019178,2]
[363809487,1748881833375,-420.0,0.00019178,2]
[363809489,1748881833385,-420.0,0.00019178,2]
[363809491,1748881833395,-420.0,0.00019178,2]
[363809493,1748881833405,-420.0,0.00019178,2]
[363809495,1748881833415,-420.0,0.00019178,2]
[363809497,1748881833425,-274.56,0.00019178,2]
[363809499,1748881833436,-420.0,0.00019178,2]
[363809501,1748881833446,-1729.0,0.00019178,2]
[363809503,1748881833456,-420.0,0.00019178,2]
[363809506,1748881833465,-420.0,0.00019178,2]
[363809508,1748881833475,-420.0,0.00019178,2]
[363809510,1748881833484,-420.0,0.00019178,2]
[363809512,1748881833494,-466.55,0.00019178,2]
[363809513,1748881833504,-2157.8,0.00019178,2]
[363809515,1748881833514,-420.0,0.00019178,2]
[363809518,1748881833524,-420.0,0.00019178,2]
[363809520,1748881833534,-420.0,0.00019178,2]
[363809522,1748881833544,-420.0,0.00019178,2]
[363809524,1748881833553,-420.0,0.00019178,2]
[363809525,1748881833563,-420.0,0.00019178,2]
[363809527,1748881833573,-420.0,0.00019178,2]
[363809529,1748881833583,-420.0,0.00019178,2]
[363809531,1748881833593,-420.0,0.00019178,2]
[363809533,1748881833602,-477.06325943,0.00019178,2]
[363809535,1748881833612,-420.0,0.00019178,2]
[363809537,1748881833621,-420.0,0.00019178,2]
[363809539,1748881833631,-568.54,0.00019178,2]
[363809541,1748881833640,-420.0,0.00019178,2]
[363809543,1748881833650,-420.0,0.00019178,2]
[363809545,1748881833659,-500.0,0.00019178,2]
[363809547,1748881833668,-420.0,0.00019178,2]
[363809549,1748881833678,-420.0,0.00019178,2]
[363809551,1748881833687,-452.32,0.00019178,2]
[363809553,1748881833697,-420.0,0.00019178,2]
[363809555,1748881833706,-420.0,0.00019178,2]
[363809557,1748881833715,-420.0,0.00019178,2]
[363809559,1748881833725,-420.0,0.00019178,2]
[363809561,1748881833734,-420.0,0.00019178,2]
[363809563,1748881833744,-420.0,0.00019178,2]
[363809565,1748881833753,-420.0,0.00019178,2]
[363809567,1748881833765,-420.0,0.00019178,2]
[363809569,1748881833776,-420.0,0.00019178,2]
[363809571,1748881833786,-420.0,0.00019178,2]
[363809573,1748881833795,-420.0,0.00019178,2]
[363809575,1748881833805,-528.37681783,0.00019178,2]
[363809577,1748881833814,-420.0,0.00019178,2]
[363809579,1748881833823,-420.0,0.00019178,2]
[363809581,1748881833833,-420.0,0.00019178,2]
[363809582,1748881833843,-420.0,0.00019178,2]
[363809583,1748881833852,-420.0,0.00019178,2]
[363809584,1748881833863,-420.0,0.00019178,2]
[363809585,1748881833872,-420.0,0.00019178,2]
[363809586,1748881833882,-420.0,0.00019178,2]
[363809587,1748881833891,-420.0,0.00019178,2]
[363809588,1748881833900,-420.0,0.00019178,2]
[363809589,1748881833910,-420.0,0.00019178,2]
[363809590,1748881833921,-420.0,0.00019178,2]
[363809591,1748881833931,-420.0,0.00019178,2]
[363809592,1748881833941,-420.0,0.00019178,2]
[363809593,1748881833950,-420.0,0.00019178,2]
[363809594,1748881833960,-302.31,0.00019178,2]
[363809595,1748881833970,-420.0,0.00019178,2]
[363809596,1748881833979,-420.0,0.00019178,2]
[363809597,1748881833989,-420.0,0.00019178,2]
[363809598,1748881833999,-420.0,0.00019178,2]
[363809600,1748881834009,-420.0,0.00019178,2]
[363809601,1748881834019,-420.0,0.00019178,2]
[363809603,1748881834030,-420.0,0.00019178,2]
[363809605,1748881834039,-6142.95,0.00019178,2]
[363809607,1748881834049,-420.0,0.00019178,2]
[363809609,1748881834058,-420.0,0.00019178,2]
[363809611,1748881834069,-420.0,0.00019178,2]
[363809613,1748881834079,-420.0,0.00019178,2]
[363809615,1748881834089,-420.0,0.00019178,2]
[363809617,1748881834099,-420.0,0.00019178,2]
[363809619,1748881834109,-420.0,0.00019178,2]
[363809621,1748881834119,-420.0,0.00019178,2]
[363809623,1748881834129,-420.0,0.00019178,2]
[363809625,1748881834138,-420.0,0.00019178,2]
[363809627,1748881834148,-420.0,0.00019178,2]
[363809629,1748881834158,-175.358406,0.00019178,2]
[363809631,1748881834167,-420.0,0.00019178,2]
[363809633,1748881834177,-175.358406,0.00019178,2]
[363809635,1748881834186,-420.0,0.00019178,2]
[363809637,1748881834195,-420.0,0.00019178,2]
[363809639,1748881834205,-420.0,0.00019178,2]
[363809641,1748881834215,-235.71,0.00019178,2]
[363809643,1748881834224,-420.0,0.00019178,2]
[363809645,1748881834233,-420.0,0.00019178,2]
[363809647,1748881834244,-420.0,0.00019178,2]
[363809649,1748881834253,-420.0,0.00019178,2]
[363809651,1748881834263,-420.0,0.00019178,2]
[363809653,1748881834273,-420.0,0.00019178,2]
[363809655,1748881834283,-420.0,0.00019178,2]
[363809657,1748881834292,-420.0,0.00019178,2]
[363809659,1748881834301,-420.0,0.00019178,2]
[363809661,1748881834311,-420.0,0.00019178,2]
[363809663,1748881834321,-651.66,0.00019178,2]
[363809665,1748881834331,-420.0,0.00019178,2]
[363809667,1748881834340,-709.44,0.00019178,2]
[363809669,1748881834350,-420.0,0.00019178,2]
[363809671,1748881834360,-420.0,0.00019178,2]
[363809673,1748881834370,-420.0,0.00019178,2]
[363809675,1748881834379,-420.0,0.00019178,2]
[363809676,1748881834389,-420.0,0.00019178,2]
[363809678,1748881834398,-420.0,0.00019178,2]
[363809680,1748881834407,-420.0,0.00019178,2]
[363809682,1748881834416,-420.0,0.00019178,2]
[363809684,1748881834426,-420.0,0.00019178,2]
[363809686,1748881834436,-387.79,0.00019178,2]
[363809688,1748881834445,-420.0,0.00019178,2]
[363809690,1748881834455,-420.0,0.00019178,2]
[363809692,1748881834465,-420.0,0.00019178,2]
[363809694,1748881834475,-420.0,0.00019178,2]
[363809696,1748881834484,-420.0,0.00019178,2]
[363809698,1748881834493,-420.0,0.00019178,2]
[363809700,1748881834504,-1399.65,0.00019178,2]
[363809702,1748881834513,-420.0,0.00019178,2]
[363809704,1748881834523,-1278.29,0.00019178,2]
[363809706,1748881834532,-420.0,0.00019178,2]
[363809708,1748881834542,-420.0,0.00019178,2]
[363809710,1748881834551,-420.0,0.00019178,2]
[363809712,1748881834561,-420.0,0.00019178,2]
[363809714,1748881834570,-683.21,0.00019178,2]
[363809716,1748881834579,-420.0,0.00019178,2]
[363809718,1748881834589,-420.0,0.00019178,2]
[363809720,1748881834598,-420.0,0.00019178,2]
[363809722,1748881834608,-420.0,0.00019178,2]
[363809724,1748881834617,-1122.44,0.00019178,2]
[363809726,1748881834626,-420.0,0.00019178,2]
[363809728,1748881834635,-420.0,0.00019178,2]
[363809730,1748881834644,-424.17,0.00019178,2]
[363809732,1748881834654,-555.54,0.00019178,2]
[363809734,1748881834663,-420.0,0.00019178,2]
[363809736,1748881834674,-420.0,0.00019178,2]
[363809738,1748881834685,-420.0,0.00019178,2]
[363809740,1748881834695,-420.0,0.00019178,2]
[363809742,1748881834704,-420.0,0.00019178,2]
[363809744,1748881834713,-420.0,0.00019178,2]
[363809745,1748881834723,-420.0,0.00019178,2]
[363809747,1748881834732,-567.87,0.00019178,2]
[363809749,1748881834742,-420.0,0.00019178,2]
[363809751,1748881834751,-420.0,0.00019178,2]
[363809753,1748881834760,-420.0,0.00019178,2]
[363809755,1748881834773,-498.34376262,0.00019178,2]
[363809757,1748881834782,-420.0,0.00019178,2]
[363809759,1748881834792,-420.0,0.00019178,2]
[363809761,1748881834801,-420.0,0.00019178,2]
[363809763,1748881834812,-420.0,0.00019178,2]
[363809765,1748881834821,-774.244702,0.00019178,2]
[363809767,1748881834831,-420.0,0.00019178,2]
[363809769,1748881834840,-420.0,0.00019178,2]
[363809771,1748881834850,-420.0,0.00019178,2]
[363809773,1748881834860,-420.0,0.00019178,2]
[363809775,1748881834870,-420.0,0.00019178,2]
[363809777,1748881834879,-420.0,0.00019178,2]
[363809779,1748881834888,-420.0,0.00019178,2]
[363809781,1748881834898,-420.0,0.00019178,2]
[363809783,1748881834907,-420.0,0.00019178,2]
[363809785,1748881834916,-420.0,0.00019178,2]
[363809787,1748881834926,-420.0,0.00019178,2]
[363809789,1748881834938,-420.0,0.00019178,2]
[363809792,1748881834949,-420.0,0.00019178,2]
[363809794,1748881834959,-150.576485,0.00019178,2]
[363809796,1748881834969,-420.0,0.00019178,2]
[363809798,1748881834978,-537.95643797,0.00019178,2]
[363809800,1748881834987,-420.0,0.00019178,2]
[363809802,1748881834997,-420.0,0.00019178,2]
[363809804,1748881835006,-420.0,0.00019178,2]
[363809806,1748881835015,-420.0,0.00019178,2]
[363809808,1748881835025,-420.0,0.00019178,2]
[363809811,1748881835045,-420.0,0.00019178,2]
[363809813,1748881835055,-780.26,0.00019178,2]
[363809815,1748881835066,-166.9,0.00019178,2]
[363809817,1748881835075,-420.0,0.00019178,2]
[363809819,1748881835085,-420.0,0.00019178,2]
[363809821,1748881835094,-1060.82,0.00019178,2]
[363809823,1748881835105,-420.0,0.00019178,2]
[363809825,1748881835114,-420.0,0.00019178,2]
[363809827,1748881835124,-420.0,0.00019178,2]
[363809829,1748881835133,-420.0,0.00019178,2]
[363809831,1748881835142,-420.0,0.00019178,2]
[363809833,1748881835151,-4008.32175826,0.00019255,2]
[363809835,1748881835161,-500.0,0.00019286,2]
[363809837,1748881835170,-500.0,0.00019286,2]
[363809839,1748881835181,-154.69,0.00019305,2]
[363809841,1748881835191,-597.96,0.00019305,2]
[363809843,1748881835200,-500.0,0.00019307,2]
[363809845,1748881835209,-165.92301587,0.00019307,2]
[363809847,1748881835219,-500.0,0.00019307,2]
[363809849,1748881835228,-420.0,0.00019315,2]
[363809851,1748881835238,-420.0,0.00019315,2]
[363809853,1748881835249,-453.86,0.00019315,2]
[363809855,1748881835258,-420.0,0.00019315,2]
[363809857,1748881835267,-266.37,0.00019315,2]
[363809859,1748881835277,-151.85,0.00019315,2]
[363809861,1748881835286,-420.0,0.00019315,2]
[363809863,1748881835295,-420.0,0.00019315,2]
[363809865,1748881835305,-420.0,0.00019315,2]
[363809867,1748881835315,-582.13,0.00019315,2]
[363809869,1748881835324,-420.0,0.00019315,2]
[363809871,1748881835334,-420.0,0.00019315,2]
[363809873,1748881835343,-1244.7,0.00019315,2]
[363809875,1748881835352,-420.0,0.00019315,2]
[363809877,1748881835362,-167.77,0.00019315,2]
[363809879,1748881835373,-420.0,0.00019315,2]
[363809881,1748881835382,-605.35,0.00019315,2]
[363809883,1748881835392,-420.0,0.00019315,2]
[363809885,1748881835401,-420.0,0.00019315,2]
[363809887,1748881835412,-845.85,0.00019315,2]
[363809889,1748881835422,-420.0,0.00019315,2]
[363809891,1748881835433,-420.0,0.00019315,2]
[363809893,1748881835443,-157.048068,0.00019315,2]
[363809895,1748881835452,-420.0,0.00019315,2]
[363809897,1748881835462,-2608.49,0.00019315,2]
[363809899,1748881835472,-420.0,0.00019315,2]
[363809901,1748881835482,-420.0,0.00019315,2]
[363809903,1748881835492,-420.0,0.00019315,2]
[363809906,1748881835503,-524.53,0.00019315,2]
[363809907,1748881835514,-420.0,0.00019315,2]
[363809909,1748881835523,-420.0,0.00019315,2]
[363809912,1748881835534,-420.0,0.00019315,2]
[363809913,1748881835543,-521.83,0.00019315,2]
[363809916,1748881835554,-420.0,0.00019315,2]
[363809918,1748881835564,-448.02,0.00019315,2]
[363809919,1748881835575,-464.15,0.00019315,2]
[363809921,1748881835585,-384.4,0.00019315,2]